[Event "Romanian Superliga 2024"]
[Site "Mamaia"]
[Date "2024.10.03"]
[Round "6.20"]
[White "Sapocinic, Semion"]
[Black "Parligras, Mircea-Emilian"]
[Result "0-1"]
[ECO "A13"]
[WhiteElo "2219"]
[BlackElo "2537"]
[Annotator "TA"]
[PlyCount "174"]
[EventDate "2024.09.26"]
[EventType "team-tourn"]
[EventCountry "ROU"]
[SourceTitle "playchess.com"]
[Source "ChessBase"]
[SourceQuality "1"]
[TimeControl "40/5400+30:1800+30"]

{[%evp 9,174,7,12,0,22,-15,-2,-14,-8,-14,-14,-16,-18,-21,-17,-19,-15,-30,-22,-31,-20,-31,-34,-56,-65,-56,-60,-65,-50,-75,-31,-41,0,-15,-17,-60,-61,-52,-58,-72,-66,-53,-48,-72,-56,-47,-64,-43,-25,-82,-94,-91,-71,-146,-136,-124,-127,-129,-74,-76,-74,-72,-71,-66,-66,-69,-72,-45,-43,-61,-72,-70,-43,-105,-48,-48,-45,-51,-51,-74,-62,-104,-82,-202,-120,-230,-222,-210,-227,-399,-394,-429,-429,-429,-422,-299,-65,-67,-66,-75,-39,-43,0,-83,-32,-32,-39,-39,0,0,0,-8,-8,0,0,-46,-55,-70,-66,-72,-73,-359,-266,-143,-267,-359,-359,-1213,-359,-272,-271,-633,-359,-359,-359,-294,-287,-359,-359,-508,-359,-359,-359,-29958,-29959,-29959,-29960,-29959,-29960,-29958,-29960,-5763,-4700,-29984,-29985,-29985,-29984,-29984,-29985,-29985,-29986,-29986,-29987,-29987,-29986,-29986,-29987]} 1. c4 {[%emt 0:00:05]} e6 {[%emt 0:00:21]} 2. Nf3 {[%emt 0:00:19]} d5 {[%emt 0:00:11]} 3. g3 {[%emt 0:00:10]} d4 {[%emt 0:00:28]} 4. Bg2 {[%emt 0:00:10]} Nc6 {[%emt 0:00:28]} 5. O-O {[%emt 0:00:52]} Nh6 {[%emt 0:00:30]} 6. e3 {[%emt 0:01:14]} Nf5 {[%emt 0:00:28]} 7. exd4 {[%emt 0:01:51]} Ncxd4 {[%emt 0:03:36]} 8. Nc3 {[%emt 0:05:10] The position is equal.} Be7 {[%emt 0:03:05][%cal Bf8e7,Be7d8,Bd8b6][%mdl 32]} 9. d3 {[%emt 0:04:31]} O-O {[%emt 0:00:11]} 10. Nxd4 {[%emt 0:05:51]} Qxd4 {[%emt 0:06:32]} 11. Nb5 {[%emt 0:14:03]} Qd7 {[%emt 0:01:23]} 12. Bf4 {[%emt 0:01:31]} Bd8 {[%emt 0:00:36]} 13. Re1 {[%emt 0:01:30]} c6 {[%emt 0:00:40]} 14. Nc3 {[%emt 0:00:20]} Bb6 {[%emt 0:02:39]} 15. Qd2 {[%emt 0:02:34]} f6 {[%emt 0:02:17]} 16. Rad1 {[%emt 0:02:17]} e5 {[%emt 0:00:43]} 17. Be3 {[%emt 0:00:04]} Nxe3 {[%emt 0:04:21]} 18. fxe3 {[%emt 0:00:10]} Qf7 {[%emt 0:00:25]} 19. Na4 {[%emt 0:02:18]} Bg4 {[%emt 0:00:57]} 20. Rc1 {[%emt 0:03:30]} Rfd8 {[%emt 0:08:40]} 21. Nxb6 {[%emt 0:02:41]} axb6 {[%emt 0:00:09]} 22. d4 {[%emt 0:01:35]} Rxa2 {[%emt 0:03:44]} 23. d5 {[%emt 0:02:40]} Qe7 $36 {[%emt 0:07:07][%mdl 2048] Repels Qb4. Black has good play.} 24. Ra1 {[%emt 0:01:51]} Rxa1 {[%emt 0:04:05]} 25. Rxa1 {[%emt 0:00:10]} b5 {[%emt 0:10:56]} 26. cxb5 {[%emt 0:10:48]} cxd5 {[%emt 0:00:43]} (26... cxb5 27. Qa5 $11) 27. Bxd5+ {[%emt 0:00:58]} Kf8 {[%emt 0:00:25]} 28. Qg2 {[%emt 0:01:40]} b6 {[%emt 0:05:42]} 29. e4 {[%emt 0:04:17]} (29. Bc4 $11) 29... Qc5+ $17 {[%emt 0:08:34]} 30. Qf2 {[%emt 0:00:11]} Qxb5 {[%emt 0:00:38]} 31. Ra7 {[%emt 0:03:49]} (31. Kg2 $142) 31... Bh3 $1 {[%emt 0:00:41]} 32. Rf7+ {[%emt 0:05:42]} Ke8 {[%emt 0:00:07]} 33. Rc7 {[%emt 0:00:53]} (33. Rxg7 $2 Rxd5 34. exd5 Qc4 35. Rg8+ (35. Rxh7 $2 Qc1+) (35. Qe1 Qd4+ 36. Kh1 Qxd5+) 35... Kd7 $19 (35... Kf7 36. Rf8+ Kxf8 37. Qxf6+ Kg8 38. Qg5+ Kf7 39. Qh5+ Kf8 40. Qxh3 $11) (35... Kf7 36. Rf8+ Kxf8 37. Qxf6+ Kg8 38. Qg5+ Kf7 39. Qh5+ Ke7 40. Qxh7+ Kd6 41. Qxh3 $11)) 33... Qa5 {[%emt 0:04:13]} (33... Qa6 $142 34. Rc1 Rc8) 34. Qe2 {[%emt 0:01:43] White wants to mate with Qh5+.} Rc8 {[%emt 0:07:45]} (34... Qa1+ 35. Kf2 Rxd5 (35... Rd7 36. Bc6 $11) 36. exd5 $11) 35. Qh5+ {[%emt 0:02:47]} Kd8 {[%emt 0:00:04][%cal Ra5e1] Some like it hot} 36. Rxc8+ {[%emt 0:00:12]} Bxc8 {[%emt 0:00:05]} 37. Qxh7 {[%emt 0:01:28][%mdl 4096] Endgame. KQB-KQB} Qa1+ {[%emt 0:00:08]} 38. Kg2 {[%emt 0:00:07]} Qxb2+ {[%emt 0:00:06]} 39. Kg1 {[%emt 0:00:07]} Qc1+ {[%emt 0:00:20]} 40. Kg2 {[%emt 0:00:00]} Qc2+ {[%emt 0:00:00]} 41. Kh1 {[%emt 0:06:19]} (41. Kf3 $15) 41... Qd1+ $1 {[%emt 0:06:49]} 42. Kg2 {[%emt 0:00:09]} Qe2+ {[%emt 0:00:55]} 43. Kg1 {[%emt 0:00:49]} Qg4 {[%emt 0:05:46]} 44. Qg8+ {[%emt 0:02:05]} Kc7 {[%emt 0:00:16]} 45. Kf2 {[%emt 0:04:13]} Qd7 {[%emt 0:04:44]} 46. h3 {[%emt 0:01:50]} Bb7 {[%emt 0:05:36]} (46... Qxh3 47. Qxg7+ Bd7 48. Qxf6 $11) (46... b5 $19 {[%cal Oc8b7]} 47. Qf8 Kb6 (47... Qxh3 48. Qc5+ Kd7 49. Qxb5+ Ke7 50. Qc5+ Kd8 51. Qf8+ Kc7 52. Qxg7+ Bd7 53. Qxf6 $11)) 47. g4 {[%emt 0:00:48]} (47. Qf8 $17) 47... Bxd5 $19 {[%emt 0:02:01]} 48. exd5 {[%emt 0:00:05] KQ-KQ} Kd6 {[%emt 0:00:15]} 49. Ke3 $2 {[%emt 0:00:44]} (49. Qa8 {might work better.}) 49... Kc5 {[%emt 0:05:51]} 50. Ke4 {[%emt 0:01:46] [#]} f5+ $1 {[%emt 0:03:43][%mdl 512]} 51. gxf5 {[%emt 0:01:53] Hoping for Qf8+.} (51. Kxe5 $2 Qd6+ 52. Kxf5 Qxd5+ 53. Qxd5+ Kxd5) 51... Qa4+ {[%emt 0:00:05]} 52. Kf3 {[%emt 0:01:47]} Qf4+ $2 {[%emt 0:00:43]} (52... Qd1+ $1 $19 53. Kg3 Qg1+ (53... Qxd5 54. Qxg7 Qe4 55. Qc7+ Kb5 56. Qd7+ Ka6 57. Qc8+ Kb5 58. Qd7+ Kc5 59. Qe7+ Kc6 60. Qg5 $11) 54. Kh4 Qf2+ 55. Kh5 (55. Kg5 $2 Qg3+ 56. Kh5 Qxh3+ 57. Kg5 Qh6+ 58. Kg4 Qf4+ 59. Kh3 Qxf5+ 60. Kh2 Qf2+ 61. Kh3 Qf6 $19) 55... Qxf5+ 56. Kh4 Qf6+ 57. Kg4 b5) 53. Kg2 $15 {[%emt 0:00:09]} Qg5+ {[%emt 0:02:13]} ({Don't play} 53... Qxf5 54. Qxg7 Qc2+ (54... Kxd5 55. Qb7+ Kc5 56. Qc7+ Kb5 57. h4 $11) 55. Kg1 Qd1+ (55... Kxd5 56. Qd7+ Kc4 57. Qc6+ Kd3 58. Qd6+ Ke3 59. Qxb6+ Ke2 60. Qf2+ Kd3 61. Qf3+ Kd4 62. Kf1 $11) 56. Kf2) 54. Kh2 $1 {[%emt 0:00:24]} Qd2+ {[%emt 0:00:21]} (54... Qxf5 55. Qxg7 Qf2+ (55... Kxd5 56. Qb7+ Kc5 57. Qe7+ Kc4 58. Qc7+ Kb5 59. h4 $11) 56. Kh1) 55. Kg3 {[%emt 0:01:09]} Qg5+ {[%emt 0:03:36]} 56. Kh2 {[%emt 0:00:15]} Qxf5 {[%emt 0:00:34]} ({Better is} 56... Qf6 $17 {[%cal Oe5e4]} 57. Qc8+ Kxd5 58. Qa8+ Kc5) 57. Qxg7 {[%emt 0:01:36]} Qf2+ {[%emt 0:01:14]} 58. Kh1 $1 {[%emt 0:00:29]} Kxd5 {[%emt 0:00:25]} 59. Qd7+ {[%emt 0:00:32]} Ke4 {[%emt 0:00:42]} 60. Qc6+ {[%emt 0:01:39]} Kf5 {[%emt 0:01:15]} 61. Qd7+ {[%emt 0:03:31]} Kf4 {[%emt 0:01:01]} 62. Qf7+ {[%emt 0:02:20]} (62. Qg4+ $1 $11 Ke3 63. h4) 62... Ke3 {[%emt 0:00:11]} 63. Qb3+ {[%emt 0:00:47]} Ke4 $1 {[%emt 0:00:10]} 64. Qc4+ {[%emt 0:01:17]} Qd4 $1 {[%emt 0:00:18]} 65. Qe6 $2 {[%emt 0:01:26][%mdl 8192] White does not recover from this.} (65. Qe2+ $17 Kd5 66. Qb5+ Kd6 67. Kh2) 65... Qd1+ {[%emt 0:00:48]} 66. Kh2 {[%emt 0:00:37]} Qe2+ $1 {[%emt 0:00:13]} 67. Kg1 {[%emt 0:01:06]} b5 {[%emt 0:01:21]} 68. Qc6+ $2 {[%emt 0:03:08]} (68. Qg6+ Kf4 69. Qg8) 68... Kd4 $2 {[%emt 0:00:08]} (68... Kf4 {( -> ...Qe3+)} 69. Qe6 e4) 69. Qb6+ $19 {[%emt 0:01:39] [#]} Kc3 $1 {[%emt 0:01:45] Threatens to win with ...Qe1+.} 70. Qc5+ $2 {[%emt 0:00:27]} (70. h4 Qe1+ (70... Qg4+ 71. Kf1 $11) 71. Kg2) 70... Kb3 {[%emt 0:00:47]} 71. Qd5+ {[%emt 0:00:31]} Kb4 {[%emt 0:01:35] Strongly threatening ...e4.} 72. Qd6+ {[%emt 0:00:49]} Ka4 {[%emt 0:00:13] White must now prevent ...b4.} 73. Qa6+ {[%emt 0:00:21] [#]} Kb3 $1 {[%emt 0:00:07] And now ...e4 would win.} 74. Qe6+ {[%emt 0:00:03]} (74. h4 $142 e4 75. Qe6+ Ka3 76. h5) 74... Kb2 {[%emt 0:00:13]} 75. h4 {[%emt 0:00:20]} b4 {[%emt 0:00:38]} 76. Qf5 $2 {[%emt 0:01:11]} (76. Qd5 $19 Qe1+ 77. Kg2) 76... b3 {[%emt 0:01:25]} 77. h5 {[%emt 0:00:28]} Qd1+ {[%emt 0:01:38]} 78. Kg2 {[%emt 0:00:29]} Qc2+ {[%emt 0:00:06]} 79. Qf2 {[%emt 0:00:06]} Ka3 {[%emt 0:00:56]} 80. h6 {[%emt 0:00:10]} Qc6+ {[%emt 0:00:24]} 81. Kf1 {[%emt 0:00:35]} b2 {[%emt 0:02:10] Black mates.} 82. Qe3+ {[%emt 0:00:23]} Kb4 {[%emt 0:00:47]} 83. Qd2+ {[%emt 0:00:14]} Kb3 {[%emt 0:00:05]} 84. Qe3+ {[%emt 0:00:19]} Ka4 {[%emt 0:00:32]} 85. Qa7+ {[%emt 0:00:15]} Kb4 {[%emt 0:00:10]} 86. Qe7+ {[%emt 0:00:25]} Qc5 {[%emt 0:00:10]} 87. Qh7 {[%emt 0:00:29] [#]} e4 $1 {[%emt 0:00:38][%mdl 512] Weighted Error Value: White=0.17 (very precise) /Black=0.17 (very precise) .  Loses game:     	White=1     	---        Missed win:     	---       	Black=1      Mistake:       	White=11    	Black=4      Inaccurate:     	White=3     	Black=5      OK:         	White=18    	Black=24     Best:        	White=14    	Black=12     Strong:       	White=2     	Black=4} 0-1

[Event "Romanian Superliga 2024"]
[Site "Mamaia"]
[Date "2024.10.03"]
[Round "6.21"]
[White "Gavrilescu, David"]
[Black "Tamas, Christian-Arrydan"]
[Result "1-0"]
[ECO "B12"]
[WhiteElo "2547"]
[BlackElo "2137"]
[Annotator "TA"]
[PlyCount "55"]
[EventDate "2024.09.26"]
[EventType "team-tourn"]
[EventCountry "ROU"]
[SourceTitle "playchess.com"]
[Source "ChessBase"]
[SourceQuality "1"]
[TimeControl "40/5400+30:1800+30"]

{[%evp 9,55,9,20,18,19,14,18,8,13,16,21,0,23,10,29,36,66,61,79,81,108,77,76,72,70,74,81,75,72,43,55,43,66,47,201,216,218,214,220,195,191,169,195,153,254,245,414,398]} 1. e4 {[%emt 0:00:39]} c6 {[%emt 0:00:07]} 2. d4 {[%emt 0:00:20]} d5 {[%emt 0:00:06]} 3. e5 {[%emt 0:00:22]} c5 {[%emt 0:00:05]} 4. dxc5 {[%emt 0:00:43]} e6 {[%emt 0:00:05]} 5. c3 {[%emt 0:00:32]} Nd7 {[%emt 0:00:09]} 6. Nf3 {[%emt 0:00:24]} Bxc5 {[%emt 0:00:09]} 7. Nbd2 {[%emt 0:00:40]} Ne7 {[%emt 0:00:34]} 8. Nb3 {[%emt 0:00:34] The position is equal.} Qc7 {[%emt 0:01:09]} 9. Bf4 {[%emt 0:02:10]} Ng6 {[%emt 0:05:51][%csl LRe5,LRf4]} 10. Bg3 {[%emt 0:01:40]} Be7 {[%emt 0:00:23][%cal Oh7h5]} 11. Qd4 {[%emt 0:01:13]} Qb6 {[%emt 0:15:13]} 12. h4 {[%emt 0:08:38][%cal Bh2h4,Bh4h5][%mdl 32]} f6 {[%emt 0:01:24]} 13. exf6 {[%emt 0:04:03]} Bxf6 {[%emt 0:00:15]} 14. Qxb6 {[%emt 0:01:04]} Nxb6 {[%emt 0:00:53]} 15. Bd3 {[%emt 0:00:08]} O-O {[%emt 0:10:07]} 16. O-O-O $36 {[%emt 0:14:18][%mdl 2048] White is in control.} e5 {[%emt 0:09:23][%cal Be6e5,Be5f4][%mdl 32] [#] ...e4 would now be deadly.} 17. h5 {[%emt 0:07:16] White is more active.} Nf4 {[%emt 0:00:08]} 18. Bxf4 {[%emt 0:00:06]} exf4 {[%emt 0:00:06]} 19. Nfd4 {[%emt 0:00:09]} Re8 {[%emt 0:02:10]} 20. Nc5 {[%emt 0:03:34]} Nc4 {[%emt 0:07:47]} 21. Nb5 {[%emt 0:09:55] [#] aiming for Nc7. Excellent horsemanship.} (21. Bxc4 {simplifies} dxc4 22. f3 b6 23. Ne4) 21... Bg4 $2 {[%emt 0:18:15] A mistake that costs the game.} (21... Be5 $14) 22. f3 $18 {[%emt 0:01:43]} Rec8 {[%emt 0:00:26]} 23. Bxc4 {[%emt 0:02:58]} (23. Nxb7 Bd7 24. Bxc4 Rxc4) 23... dxc4 {[%emt 0:01:12]} 24. Ne4 {[%emt 0:01:05]} Be6 {[%emt 0:05:56]} 25. Nxf6+ {[%emt 0:02:01]} gxf6 {[%emt 0:00:06]} 26. Rd6 {[%emt 0:02:29]} Kf7 {[%emt 0:05:26]} (26... Rc5 $16 27. Nd4 (27. Rxe6 Rxb5 28. Rxf6 Rf8 $18) 27... Bf7 28. Rxf6 Rg5 29. Rxf4 Rxg2) 27. Re1 {[%emt 0:00:45]} Bf5 {[%emt 0:00:46]} (27... Rc5 28. Rexe6 Rxb5 29. Rxf6+ Ke7 30. Rde6+ Kd7) 28. Rd5 {[%emt 0:00:24] Weighted Error Value: White=0.08 (flawless) /Black=0.32.  Mistake:       	---       	Black=3      Inaccurate:     	White=1     	Black=2      OK:         	White=11    	Black=5      Best:        	White=2     	Black=3} 1-0

[Event "Romanian Superliga 2024"]
[Site "Mamaia"]
[Date "2024.10.03"]
[Round "6.22"]
[White "Dodoi, Matei-Teodor"]
[Black "Costachi, Mihnea"]
[Result "1/2-1/2"]
[ECO "E69"]
[WhiteElo "2091"]
[BlackElo "2472"]
[Annotator "TA"]
[PlyCount "106"]
[EventDate "2024.09.26"]
[EventType "team-tourn"]
[EventCountry "ROU"]
[SourceTitle "playchess.com"]
[Source "ChessBase"]
[SourceQuality "1"]
[TimeControl "40/5400+30:1800+30"]

{[%evp 19,106,24,35,0,22,-14,-15,-9,-8,-10,-16,-19,-19,-18,0,0,0,0,0,0,0,-15,0,0,0,0,0,-73,-75,-67,-66,-89,41,-80,-87,-89,-92,-95,-83,-99,0,0,0,0,0,0,0,0,0,0,40,40,6,6,40,40,40,0,0,0,0,0,-6,-7,-7,-7,-7,-7,0,-8,-2,-8,0,0,0,0,0,-2,-2,-2,-2,-2,-2,-2,-2,-2,0,-9,0]} 1. d4 {[%emt 0:00:09]} Nf6 {[%emt 0:00:10]} 2. c4 {[%emt 0:00:08]} g6 {[%emt 0:00:05]} 3. Nf3 {[%emt 0:00:08]} Bg7 {[%emt 0:00:03]} 4. g3 {[%emt 0:00:22]} O-O {[%emt 0:00:12]} 5. Bg2 {[%emt 0:00:10]} d6 {[%emt 0:01:29]} 6. O-O {[%emt 0:00:15]} Nbd7 {[%emt 0:04:29]} 7. Nc3 {[%emt 0:00:14]} e5 {[%emt 0:00:32]} 8. e4 {[%emt 0:00:34]} c6 {[%emt 0:01:14]} 9. h3 {[%emt 0:01:06]} Re8 {[%emt 0:02:28]} 10. Re1 {[%emt 0:01:39]} a6 {[%emt 0:01:14]} 11. Qc2 {[%emt 0:06:54]} b5 {[%emt 0:05:20]} 12. c5 {[%emt 0:05:00]} exd4 {[%emt 0:07:01]} 13. Nxd4 {[%emt 0:00:16]} dxc5 {[%emt 0:00:16]} 14. Nxc6 {[%emt 0:14:39]} Qb6 {[%emt 0:00:34][%cal Oc8b7]} 15. Be3 $1 {[%emt 0:01:57][%cal Oe4e5]} Bb7 {[%emt 0:33:45]} (15... Qxc6 $6 16. e5 $14) 16. Nb4 {[%emt 0:00:34]} Qe6 {[%emt 0:01:46]} 17. Nbd5 {[%emt 0:04:56]} Rac8 $36 {[%emt 0:00:52][%mdl 2048] Against Nc7. White is under pressure.} 18. Rad1 {[%emt 0:16:39]} b4 {[%emt 0:03:48]} 19. Nf4 {[%emt 0:00:54]} Qe5 {[%emt 0:05:01]} 20. Nd3 {[%emt 0:02:44]} Qc7 {[%emt 0:11:36]} 21. Nd5 {[%emt 0:03:36]} Qa5 {[%emt 0:00:14]} 22. Nxf6+ {[%emt 0:22:13]} (22. a3 {is interesting.} Nxd5 23. exd5 Qb5 24. axb4 cxb4 25. Qd2) 22... Nxf6 {[%emt 0:03:52]} 23. Nxc5 {[%emt 0:02:08] [#]} (23. Bxc5 Bf8 24. e5 Bxg2 25. exf6 (25. Kxg2 $2 Nd7 $19) 25... Ba8 (25... Rxc5 $2 26. Nxc5 Rxe1+ 27. Rxe1 $18) (25... Be4 $2 26. Rxe4 Rxe4 27. Bxb4 $19) 26. Rxe8 Rxe8 $17) (23. e5 $1 $11 {keeps the balance.} Bxg2 24. Kxg2 (24. exf6 Be4 $17)) 23... Bxe4 $1 $17 {[%emt 0:02:04]} 24. Bxe4 {[%emt 0:02:20] [#]} Rxe4 {[%emt 0:08:49]} 25. Rc1 {[%emt 0:08:07]} (25. Nb7 Rxc2) 25... Qxa2 {[%emt 0:02:13]} ({Black should try} 25... Re5 $1 $17 {[%cal Og7f8] aiming for ...Bf8!} 26. Qc4 b3 27. Qxa6 (27. axb3 $2 Rcxc5 28. Qf4 Rxc1 $19) 27... Rcxc5 (27... Rexc5 $2 28. Qxa5 Rxc1 29. Rxc1 $18) 28. Qxa5 Rxa5 29. Rc8+ Re8 30. Rxe8+ Nxe8 31. axb3 Bxb2) 26. Nxe4 {[%emt 0:01:50]} (26. Red1 $1 $14 {keeps the upper hand.} Qa5 27. Qb3 (27. Nxe4 Rxc2 28. Rxc2 h6 $16)) 26... Rxc2 {[%emt 0:00:01]} 27. Rxc2 {[%emt 0:00:35] [#] White wants to mate with Rc8+.} h6 $1 {[%emt 0:02:34]} ({Worse is} 27... Nxe4 28. Rc8+ Bf8 29. Bh6 Qxb2 30. Rxf8#) 28. Nxf6+ {[%emt 0:03:42]} Bxf6 {[%emt 0:00:01]} 29. Bxh6 {[%emt 0:00:34] [#]} Qb3 {[%emt 0:00:05]} (29... Bxb2 $2 {is the wrong capture.} 30. Bc1 Qb1 31. Rxb2 $18 (31. Bxb2 $2 Qxe1+ 32. Kh2 Kh7 $19)) (29... a5 $1 $17 {[%cal Og6g5] White must now prevent ...g5!} 30. Kh2 a4 (30... Bxb2 $2 {perishes.} 31. Bc1 $18)) 30. Ree2 $11 {[%emt 0:00:32]} Qf3 {[%emt 0:00:34]} 31. Be3 {[%emt 0:00:31]} a5 {[%emt 0:00:45]} 32. Red2 {[%emt 0:00:28]} Qf5 {[%emt 0:01:01]} 33. Rc5 {[%emt 0:00:31]} Qb1+ {[%emt 0:00:34]} 34. Kh2 {[%emt 0:00:04]} a4 {[%emt 0:00:24]} 35. Rc4 {[%emt 0:00:57]} a3 $1 {[%emt 0:02:08]} 36. bxa3 {[%emt 0:00:04]} bxa3 {[%emt 0:00:32] Hoping for ...a2.} (36... b3 $5) 37. Ra4 {[%emt 0:00:43]} Qb3 {[%emt 0:00:08]} 38. Ra8+ {[%emt 0:00:18]} (38. Ra6 $14 Kg7 39. Rdd6) 38... Kg7 {[%emt 0:00:31] The position is equal.} 39. h4 {[%emt 0:00:52]} Bb2 {[%emt 0:00:37]} 40. Rd7 {[%emt 0:00:00]} a2 {[%emt 0:00:00]} 41. Rda7 {[%emt 0:04:04] Dancing on a razor blade.} a1=R {[%emt 0:02:00]} 42. Rxa1 {[%emt 0:00:19]} Bxa1 {[%emt 0:00:02]} 43. Rxa1 {[%emt 0:00:08][%mdl 4096] Endgame. KQ-KRB} Kf6 {[%emt 0:00:50]} 44. Ra5 {[%emt 0:00:34]} Qc2 {[%emt 0:03:16]} 45. Rc5 {[%emt 0:00:22]} Qa2 {[%emt 0:00:07]} 46. h5 {[%emt 0:01:33] And now h6 would win.} gxh5 {[%emt 0:00:01]} 47. Rxh5 {[%emt 0:00:08]} Ke6 {[%emt 0:00:18]} 48. Rh4 {[%emt 0:00:12]} f5 {[%emt 0:00:21]} 49. Rf4 {[%emt 0:00:23]} Qe2 {[%emt 0:00:22]} 50. Rh4 {[%emt 0:00:32]} Qf3 {[%emt 0:00:12]} 51. Rf4 {[%emt 0:00:09]} Qd1 {[%emt 0:00:31]} 52. Rh4 {[%emt 0:00:08]} Qf3 {[%emt 0:00:24]} 53. Rf4 {[%emt 0:00:06]} Qd1 {[%emt 0:00:31] Weighted Error Value: White=0.12 (very precise) /Black=0.09 (flawless) .  Mistake:       	White=3     	Black=2      Inaccurate:     	White=1     	Black=2      OK:         	White=18    	Black=14     Best:        	White=1     	Black=1      Strong:       	White=1     	Black=2      Brilliant:      	---       	Black=2} 1/2-1/2

[Event "Romanian Superliga 2024"]
[Site "Mamaia"]
[Date "2024.10.03"]
[Round "6.23"]
[White "Georgescu, Tiberiu-Marian"]
[Black "Costache, Andrei Eugeniu"]
[Result "0-1"]
[ECO "D30"]
[WhiteElo "2466"]
[BlackElo "1977"]
[Annotator "TA"]
[PlyCount "80"]
[EventDate "2024.09.26"]
[EventType "team-tourn"]
[EventCountry "ROU"]
[SourceTitle "playchess.com"]
[Source "ChessBase"]
[SourceQuality "1"]
[TimeControl "40/5400+30:1800+30"]

{[%evp 9,80,2,0,2,0,0,0,-1,6,1,7,-16,0,0,7,0,0,0,0,0,0,0,0,0,0,-28,-13,-25,-6,-177,-7,-4,-12,-3,-11,-69,-64,-70,-76,-52,-52,-63,-60,-58,-73,-104,-90,-106,-24,-124,-72,-67,-44,-54,-58,-57,-59,-165,-168,-183,-166,-316,-354,-297,-179,-1525,-1551,-29964,-29965,-29969,-29945,-29998,-29999]} 1. d4 {[%emt 0:02:28]} Nf6 {[%emt 0:00:21]} 2. Nf3 {[%emt 0:00:41]} e6 {[%emt 0:00:58]} 3. c4 {[%emt 0:02:09]} d5 {[%emt 0:00:11]} 4. e3 {[%emt 0:00:12]} Bb4+ {[%emt 0:02:19]} 5. Bd2 {[%emt 0:00:29]} Be7 {[%emt 0:00:08]} 6. Nc3 {[%emt 0:01:14]} O-O {[%emt 0:01:09]} 7. Rc1 {[%emt 0:01:32]} b6 {[%emt 0:02:48]} 8. cxd5 {[%emt 0:01:14] The position is equal.} exd5 {[%emt 0:00:09]} 9. Bd3 {[%emt 0:00:17]} Bb7 {[%emt 0:01:45][%cal Bc8b7,Bb7c6,Bc6d7][%mdl 32]} 10. Ne5 {[%emt 0:15:48]} c5 {[%emt 0:03:58]} 11. O-O {[%emt 0:07:46]} Nc6 {[%emt 0:04:16]} 12. Nxc6 {[%emt 0:14:31]} Bxc6 {[%emt 0:00:20]} 13. dxc5 {[%emt 0:03:02]} bxc5 {[%emt 0:02:10]} 14. Ne2 {[%emt 0:03:00][%cal Bc3e2,Be2d4,Bd4f5,Bf5e7][%mdl 32]} Bd6 {[%emt 0:05:53]} 15. Nd4 {[%emt 0:08:12]} Bd7 {[%emt 0:09:06]} 16. Nf5 {[%emt 0:02:11]} Be5 {[%emt 0:06:42]} 17. f4 {[%emt 0:03:16]} Bxb2 {[%emt 0:02:35]} 18. Rxc5 {[%emt 0:00:23]} Qb6 {[%emt 0:09:27]} 19. Ne7+ {[%emt 0:09:21]} Kh8 {[%emt 0:00:33]} 20. Ra5 {[%emt 0:00:02][%cal Od1c2]} d4 {[%emt 0:15:37]} 21. e4 {[%emt 0:05:46] e5 would now be deadly.} Bc3 {[%emt 0:02:58]} 22. Rg5 {[%emt 0:01:37]} (22. Ra6 $11 Qd8 23. e5) 22... Qb4 $36 {[%emt 0:01:57][%mdl 2048] Black is pushing.} 23. Nd5 {[%emt 0:14:59]} Nxd5 {[%emt 0:01:39]} 24. Rxd5 {[%emt 0:00:03]} Bc6 {[%emt 0:00:44]} 25. a3 $1 {[%emt 0:00:11]} Qxa3 {[%emt 0:03:08]} 26. Bc1 {[%emt 0:00:11]} Qa4 {[%emt 0:02:02]} 27. Bc2 {[%emt 0:01:09]} Qb4 {[%emt 0:04:54]} 28. Rh5 {[%emt 0:01:05] [#]} Qb7 {[%emt 0:04:40]} (28... f5 $1 $17 {[%cal Rf5e4]} 29. exf5 Rf6) 29. Qd3 {[%emt 0:01:12]} (29. f5 $1 $11 {keeps the balance.} Bxe4 30. Bxe4 Qxe4 31. Rh3) 29... g6 {[%emt 0:00:43]} (29... f5 $142 $1 {And now ...g6 would win.} 30. exf5 Rf6 (30... Bxg2 $2 31. f6 $18) (30... Bb5 31. Qh3 $11)) 30. Rc5 $17 {[%emt 0:00:40]} a6 {[%emt 0:02:48] aiming for ...Bb5.} 31. Rxc3 {[%emt 0:00:45]} dxc3 {[%emt 0:00:18]} 32. Qxc3+ {[%emt 0:00:02]} f6 $1 {[%emt 0:01:06]} 33. e5 {[%emt 0:00:57]} (33. Ba3 $15) 33... Rac8 $19 {[%emt 0:01:14]} 34. exf6 {[%emt 0:00:30][%cal Rf6f7]} Bxg2 {[%emt 0:02:13]} 35. Qd4 {[%emt 0:00:09]} (35. Qe5 {was the only chance.} Rf7 (35... Rxc2 36. f7#) (35... Qb6+ $2 36. Rf2 $16) 36. Re1) 35... Rfd8 {[%emt 0:01:15]} (35... Rxc2 36. f7#) (35... Qd5 36. Qb2 h5 37. Bxg6 $17) 36. Qe5 {[%emt 0:00:14][%cal Rf6f7]} Rd5 {[%emt 0:01:12]} (36... Rxc2 37. f7#) 37. Qa1 {[%emt 0:00:31]} (37. Qe7 Rd7 (37... Qxe7 38. fxe7 Bxf1 39. Bb2+ Kg8 40. Bb3 $15) 38. Qe5) 37... Kg8 {[%emt 0:03:04] ( -> ...Qb6+)} ({Stronger than} 37... Rxc2 38. f7+) 38. Rf2 {[%emt 0:01:06] [#]} Rxc2 $1 {[%emt 0:00:14][%mdl 512] Black mates.} 39. f7+ {[%emt 0:00:22]} (39. Be3 Qd7) 39... Kxf7 {[%emt 0:00:12]} 40. f5 {[%emt 0:00:00]} Rd1+ {[%emt 0:00:00] Weighted Error Value: White=0.49/Black=0.14 (very precise) .  Missed win:     	---       	Black=1      Mistake:       	White=5     	Black=2      Inaccurate:     	White=3     	Black=1      OK:         	White=14    	Black=12     Best:        	White=1     	Black=3      Strong:       	White=1     	Black=1} 0-1